[Event "December 19 Late 2023"]
[Site "https://www.chess.com"]
[Date "2023.12.19"]
[Round "10"]
[White "Gerbelli Neto, Eduardo"]
[Black "Merriman, John"]
[Result "1-0"]
[Board "99"]
[TimeControl "180+1"]
[WhiteFideId "2103281"]
[BlackFideId "402362"]
[WhiteElo "2178"]
[BlackElo "2207"]
[WhiteTeam "BRA"]
[BlackTeam "ENG"]
[WhiteClock "0:00:16"]
[BlackClock "0:00:00"]

1. e4 {[%clk 0:03:00]}  e6 {[%clk 0:02:59]} 2. d4 {[%clk 0:03:00]}  d5 {[%clk 0:02:59]} 3. Nc3 {[%clk 0:03:00]}  Bb4 {[%clk 0:02:58]} 4. Ne2 {[%clk 0:03:00]}  dxe4 {[%clk 0:02:57]} 5. a3 {[%clk 0:03:00]}  Bxc3+ {[%clk 0:02:56]} 6. Nxc3 {[%clk 0:03:01]}  f5 {[%clk 0:02:55]} 7. f3 {[%clk 0:02:58]}  exf3 {[%clk 0:02:53]} 8. Qxf3 {[%clk 0:02:58]}  Nf6 {[%clk 0:02:53]} 9. Bf4 {[%clk 0:02:36]}  O-O {[%clk 0:01:29]} 10. O-O-O {[%clk 0:02:30]}  Nd5 {[%clk 0:01:29]} 11. Nxd5 {[%clk 0:02:18]}  Qxd5 {[%clk 0:01:26]} 12. Qxd5 {[%clk 0:02:18]}  exd5 {[%clk 0:01:27]} 13. Bxc7 {[%clk 0:02:19]}  Nc6 {[%clk 0:01:27]} 14. c3 {[%clk 0:02:10]}  f4 {[%clk 0:01:27]} 15. Be2 {[%clk 0:02:03]}  Bf5 {[%clk 0:01:20]} 16. Bf3 {[%clk 0:02:03]}  Be4 {[%clk 0:01:19]} 17. Rde1 {[%clk 0:02:03]}  Rae8 {[%clk 0:01:16]} 18. Rhf1 {[%clk 0:01:43]}  g5 {[%clk 0:01:12]} 19. h4 {[%clk 0:01:31]}  h6 {[%clk 0:01:11]} 20. hxg5 {[%clk 0:01:31]}  hxg5 {[%clk 0:01:12]} 21. b4 {[%clk 0:01:23]}  Rf7 {[%clk 0:01:09]} 22. Bd6 {[%clk 0:01:10]}  Re6 {[%clk 0:00:54]} 23. b5 {[%clk 0:00:33]}  Rxd6 {[%clk 0:00:51]} 24. Bxe4 {[%clk 0:00:32]}  dxe4 {[%clk 0:00:47]} 25. bxc6 {[%clk 0:00:33]}  Rxc6 {[%clk 0:00:47]} 26. Rxe4 {[%clk 0:00:33]}  Rxc3+ {[%clk 0:00:48]} 27. Kb2 {[%clk 0:00:31]}  Rfc7 {[%clk 0:00:45]} 28. Rf2 {[%clk 0:00:32]}  Kg7 {[%clk 0:00:37]} 29. Re5 {[%clk 0:00:31]}  Kg6 {[%clk 0:00:37]} 30. d5 {[%clk 0:00:30]}  Rd3 {[%clk 0:00:33]} 31. Rfe2 {[%clk 0:00:27]}  g4 {[%clk 0:00:29]} 32. Re6+ {[%clk 0:00:26]}  Kf7 {[%clk 0:00:29]} 33. R6e4 {[%clk 0:00:25]}  f3 {[%clk 0:00:21]} 34. Rf4+ {[%clk 0:00:23]}  Kg6 {[%clk 0:00:18]} 35. Rxg4+ {[%clk 0:00:23]}  Kf5 {[%clk 0:00:16]} 36. gxf3 {[%clk 0:00:22]}  Rxf3 {[%clk 0:00:15]} 37. Rg8 {[%clk 0:00:21]}  Rcc3 {[%clk 0:00:09]} 38. Rf8+ {[%clk 0:00:20]}  Kg4 {[%clk 0:00:07]} 39. Rg2+ {[%clk 0:00:18]}  Kh3 {[%clk 0:00:06]} 40. Rxf3+ {[%clk 0:00:18]}  Rxf3 {[%clk 0:00:06]} 41. Rd2 {[%clk 0:00:19]}  Rf7 {[%clk 0:00:05]} 42. Kc3 {[%clk 0:00:19]}  Kg4 {[%clk 0:00:04]} 43. Kc4 {[%clk 0:00:20]}  Kf5 {[%clk 0:00:04]} 44. Kc5 {[%clk 0:00:19]}  Rd7 {[%clk 0:00:03]} 45. Re2 {[%clk 0:00:18]}  Kf6 {[%clk 0:00:02]} 46. d6 {[%clk 0:00:18]}  Rd8 {[%clk 0:00:01]} 47. Kd5 {[%clk 0:00:18]}  Rd7 {[%clk 0:00:01]} 48. Rf2+ {[%clk 0:00:17]}  Kg7 {[%clk 0:00:00]} 49. Ke6 {[%clk 0:00:16]} 1-0

[Event "December 19 Late 2023"]
[Site "https://www.chess.com"]
[Date "2023.12.19"]
[Round "10"]
[White "GirthyHuell"]
[Black "Novikova, Margarita"]
[Result "0-1"]
[Board "102"]
[TimeControl "180+1"]
[BlackFideId "14109689"]
[WhiteElo "2288"]
[BlackElo "2090"]
[BlackTeam "GER"]
[WhiteClock "0:01:58"]
[BlackClock "0:01:52"]

1. e4 {[%clk 0:03:00]}  e5 {[%clk 0:02:50]} 2. f4 {[%clk 0:02:59]}  exf4 {[%clk 0:02:50]} 3. Nf3 {[%clk 0:02:59]}  d5 {[%clk 0:02:49]} 4. e5 {[%clk 0:02:59]}  f6 {[%clk 0:02:46]} 5. d4 {[%clk 0:02:57]}  fxe5 {[%clk 0:02:37]} 6. Nxe5 {[%clk 0:02:54]}  Qh4+ {[%clk 0:02:34]} 7. g3 {[%clk 0:02:33]}  fxg3 {[%clk 0:02:34]} 8. Nf3 {[%clk 0:02:34]}  g2+ {[%clk 0:02:32]} 9. Nxh4 {[%clk 0:02:34]}  gxh1=Q {[%clk 0:02:32]} 10. Nf3 {[%clk 0:02:28]}  Bg4 {[%clk 0:02:25]} 11. Qe2+ {[%clk 0:02:27]}  Be7 {[%clk 0:02:20]} 12. Nbd2 {[%clk 0:02:27]}  Nc6 {[%clk 0:02:02]} 13. b4 {[%clk 0:02:21]}  Nxd4 {[%clk 0:01:54]} 14. Qd3 {[%clk 0:02:18]}  Nxf3+ {[%clk 0:01:52]} 15. Nxf3 {[%clk 0:01:58]}  Qxf3 {[%clk 0:01:52]} 0-1

[Event "December 19 Late 2023"]
[Site "https://www.chess.com"]
[Date "2023.12.19"]
[Round "10"]
[White "Ivanov, Aleksandr"]
[Black "Chiquitita23"]
[Result "0-1"]
[Board "103"]
[TimeControl "180+1"]
[WhiteFideId "2092980"]
[WhiteElo "2156"]
[BlackElo "2055"]
[WhiteTeam "USA"]
[WhiteClock "0:00:13"]
[BlackClock "0:00:08"]

1. d4 {[%clk 0:03:00]}  Nf6 {[%clk 0:02:58]} 2. c4 {[%clk 0:03:00]}  e6 {[%clk 0:02:57]} 3. Nc3 {[%clk 0:02:59]}  Bb4 {[%clk 0:02:57]} 4. e3 {[%clk 0:02:59]}  c5 {[%clk 0:02:53]} 5. Ne2 {[%clk 0:02:56]}  O-O {[%clk 0:02:45]} 6. a3 {[%clk 0:02:55]}  Bxc3+ {[%clk 0:02:40]} 7. Nxc3 {[%clk 0:02:55]}  d5 {[%clk 0:02:40]} 8. Bd3 {[%clk 0:02:45]}  dxc4 {[%clk 0:02:38]} 9. Bxc4 {[%clk 0:02:45]}  cxd4 {[%clk 0:02:39]} 10. exd4 {[%clk 0:02:45]}  b6 {[%clk 0:02:37]} 11. O-O {[%clk 0:02:42]}  Bb7 {[%clk 0:02:37]} 12. Bg5 {[%clk 0:02:38]}  Nbd7 {[%clk 0:02:35]} 13. d5 {[%clk 0:02:35]}  Ne5 {[%clk 0:02:26]} 14. Bb3 {[%clk 0:02:26]}  h6 {[%clk 0:02:14]} 15. Bxf6 {[%clk 0:02:22]}  Qxf6 {[%clk 0:02:13]} 16. dxe6 {[%clk 0:02:22]}  fxe6 {[%clk 0:02:11]} 17. f3 {[%clk 0:02:08]}  Rad8 {[%clk 0:01:43]} 18. Qe2 {[%clk 0:02:03]}  Kh8 {[%clk 0:01:29]} 19. Ne4 {[%clk 0:01:50]}  Qg6 {[%clk 0:01:22]} 20. Kh1 {[%clk 0:01:37]}  Nd3 {[%clk 0:00:47]} 21. Bc2 {[%clk 0:01:20]}  Nf4 {[%clk 0:00:43]} 22. Qf2 {[%clk 0:01:13]}  Qf7 {[%clk 0:00:22]} 23. Rae1 {[%clk 0:01:09]}  Bd5 {[%clk 0:00:18]} 24. Qg3 {[%clk 0:01:01]}  Qc7 {[%clk 0:00:15]} 25. Qg4 {[%clk 0:00:53]}  Qxc2 {[%clk 0:00:13]} 26. Rf2 {[%clk 0:00:47]}  Qc7 {[%clk 0:00:12]} 27. Qh4 {[%clk 0:00:40]}  Nd3 {[%clk 0:00:10]} 28. Rff1 {[%clk 0:00:40]}  Nxe1 {[%clk 0:00:10]} 29. Rxe1 {[%clk 0:00:40]}  Bxe4 {[%clk 0:00:09]} 30. fxe4 {[%clk 0:00:13]}  Qf4 {[%clk 0:00:08]} 0-1

[Event "December 19 Late 2023"]
[Site "https://www.chess.com"]
[Date "2023.12.19"]
[Round "10"]
[White "Stead, Kerry"]
[Black "Kostiukov, Alexandr"]
[Result "0-1"]
[Board "104"]
[TimeControl "180+1"]
[WhiteFideId "3202577"]
[BlackFideId "14108100"]
[WhiteElo "1997"]
[BlackElo "2112"]
[WhiteTeam "AUS"]
[BlackTeam "UKR"]
[WhiteClock "0:01:55"]
[BlackClock "0:01:25"]

1. d4 {[%clk 0:02:59]}  g6 {[%clk 0:02:58]} 2. e4 {[%clk 0:02:58]}  c5 {[%clk 0:02:57]} 3. c3 {[%clk 0:02:58]}  cxd4 {[%clk 0:02:57]} 4. cxd4 {[%clk 0:02:57]}  d5 {[%clk 0:02:57]} 5. e5 {[%clk 0:02:56]}  Bg7 {[%clk 0:02:56]} 6. Nc3 {[%clk 0:02:54]}  Nh6 {[%clk 0:02:55]} 7. f4 {[%clk 0:02:53]}  Nc6 {[%clk 0:02:51]} 8. Nf3 {[%clk 0:02:51]}  Bg4 {[%clk 0:02:51]} 9. Be3 {[%clk 0:02:50]}  Nf5 {[%clk 0:02:48]} 10. Bf2 {[%clk 0:02:49]}  Bxf3 {[%clk 0:02:48]} 11. gxf3 {[%clk 0:02:44]}  e6 {[%clk 0:02:45]} 12. Qd2 {[%clk 0:02:40]}  O-O {[%clk 0:02:37]} 13. h4 {[%clk 0:02:35]}  h5 {[%clk 0:02:36]} 14. Nd1 {[%clk 0:02:25]}  Qb6 {[%clk 0:02:33]} 15. Rg1 {[%clk 0:02:18]}  Nfxd4 {[%clk 0:02:06]} 16. Be2 {[%clk 0:02:14]}  Qb4 {[%clk 0:01:57]} 17. Nc3 {[%clk 0:02:08]}  Nxe2 {[%clk 0:01:51]} 18. Kxe2 {[%clk 0:02:05]}  Kh7 {[%clk 0:01:29]} 19. a3 {[%clk 0:02:02]}  Qc4+ {[%clk 0:01:26]} 20. Ke1 {[%clk 0:01:59]}  Bh6 {[%clk 0:01:26]} 21. Be3 {[%clk 0:01:55]}  d4 {[%clk 0:01:25]} 0-1

[Event "December 19 Late 2023"]
[Site "https://www.chess.com"]
[Date "2023.12.19"]
[Round "10"]
[White "Lutz, Igor Oscar"]
[Black "De Souza, Cristiano Gomes"]
[Result "0-1"]
[Board "105"]
[TimeControl "180+1"]
[WhiteFideId "2110806"]
[BlackFideId "2151758"]
[WhiteElo "2097"]
[BlackElo "2068"]
[WhiteTeam "BRA"]
[BlackTeam "BRA"]
[WhiteClock "0:00:02"]
[BlackClock "0:00:38"]

1. d4 {[%clk 0:03:00]}  Nf6 {[%clk 0:02:32]} 2. c4 {[%clk 0:03:00]}  g6 {[%clk 0:02:32]} 3. Nc3 {[%clk 0:03:00]}  d6 {[%clk 0:02:33]} 4. e4 {[%clk 0:03:00]}  Bg7 {[%clk 0:02:34]} 5. Nf3 {[%clk 0:03:01]}  O-O {[%clk 0:02:34]} 6. Be2 {[%clk 0:03:01]}  e5 {[%clk 0:02:34]} 7. Be3 {[%clk 0:03:01]}  Ng4 {[%clk 0:02:34]} 8. Bg5 {[%clk 0:03:01]}  f6 {[%clk 0:02:34]} 9. Bh4 {[%clk 0:03:00]}  Nh6 {[%clk 0:02:34]} 10. dxe5 {[%clk 0:02:51]}  dxe5 {[%clk 0:02:31]} 11. Nd5 {[%clk 0:02:51]}  c6 {[%clk 0:02:28]} 12. Ne3 {[%clk 0:02:40]}  Qa5+ {[%clk 0:02:25]} 13. Qd2 {[%clk 0:02:35]}  Qxd2+ {[%clk 0:02:24]} 14. Nxd2 {[%clk 0:02:34]}  Nd7 {[%clk 0:02:21]} 15. O-O {[%clk 0:02:33]}  Nc5 {[%clk 0:02:21]} 16. b4 {[%clk 0:02:19]}  Ne6 {[%clk 0:02:21]} 17. Nb3 {[%clk 0:02:05]}  Nd4 {[%clk 0:02:20]} 18. Nxd4 {[%clk 0:01:45]}  exd4 {[%clk 0:02:18]} 19. Nc2 {[%clk 0:01:44]}  f5 {[%clk 0:02:17]} 20. Rad1 {[%clk 0:01:35]}  fxe4 {[%clk 0:02:16]} 21. Nxd4 {[%clk 0:01:33]}  Nf5 {[%clk 0:02:09]} 22. Nxf5 {[%clk 0:01:31]}  gxf5 {[%clk 0:02:04]} 23. c5 {[%clk 0:01:15]}  Be6 {[%clk 0:02:03]} 24. a3 {[%clk 0:01:12]}  Bd5 {[%clk 0:01:57]} 25. Be7 {[%clk 0:00:44]}  Rf7 {[%clk 0:01:56]} 26. Bd6 {[%clk 0:00:37]}  Bb2 {[%clk 0:01:55]} 27. Bh5 {[%clk 0:00:37]}  Rg7 {[%clk 0:01:54]} 28. g3 {[%clk 0:00:19]}  Bxa3 {[%clk 0:01:47]} 29. Rb1 {[%clk 0:00:16]}  a5 {[%clk 0:01:38]} 30. Be5 {[%clk 0:00:15]}  Bxb4 {[%clk 0:01:36]} 31. Bxg7 {[%clk 0:00:14]}  Kxg7 {[%clk 0:01:36]} 32. Rfd1 {[%clk 0:00:12]}  Kf6 {[%clk 0:01:36]} 33. Be2 {[%clk 0:00:11]}  Ke5 {[%clk 0:01:36]} 34. Rdc1 {[%clk 0:00:10]}  f4 {[%clk 0:01:33]} 35. Bc4 {[%clk 0:00:10]}  fxg3 {[%clk 0:01:28]} 36. hxg3 {[%clk 0:00:10]}  Bxc5 {[%clk 0:01:16]} 37. Rc2 {[%clk 0:00:05]}  Rg8 {[%clk 0:01:12]} 38. Kf1 {[%clk 0:00:04]}  e3 {[%clk 0:01:10]} 39. fxe3 {[%clk 0:00:04]}  Rxg3 {[%clk 0:01:09]} 40. Re1 {[%clk 0:00:02]}  Bxe3 {[%clk 0:01:08]} 41. Ke2 {[%clk 0:00:02]}  Rg2+ {[%clk 0:01:03]} 42. Kd3 {[%clk 0:00:01]}  Rxc2 {[%clk 0:01:02]} 43. Kxc2 {[%clk 0:00:02]}  Kd4 {[%clk 0:00:59]} 44. Be2 {[%clk 0:00:02]}  Be4+ {[%clk 0:00:59]} 45. Kb2 {[%clk 0:00:02]}  Bd2 {[%clk 0:00:58]} 46. Rd1 {[%clk 0:00:03]}  Ke3 {[%clk 0:00:58]} 47. Bc4 {[%clk 0:00:03]}  b5 {[%clk 0:00:58]} 48. Bf7 {[%clk 0:00:02]}  a4 {[%clk 0:00:56]} 49. Rh1 {[%clk 0:00:02]}  b4 {[%clk 0:00:55]} 50. Rh3+ {[%clk 0:00:02]}  Kd4 {[%clk 0:00:55]} 51. Rh4 {[%clk 0:00:02]}  a3+ {[%clk 0:00:53]} 52. Ka2 {[%clk 0:00:02]}  Bg5 {[%clk 0:00:48]} 53. Rg4 {[%clk 0:00:01]}  Bf6 {[%clk 0:00:45]} 54. Bb3 {[%clk 0:00:02]}  Ke3 {[%clk 0:00:43]} 55. Rg3+ {[%clk 0:00:02]}  Kd4 {[%clk 0:00:41]} 56. Rg1 {[%clk 0:00:02]}  c5 {[%clk 0:00:39]} 57. Rd1+ {[%clk 0:00:03]}  Bd3 {[%clk 0:00:39]} 58. Bc2 {[%clk 0:00:03]}  c4 {[%clk 0:00:40]} 59. Bb3 {[%clk 0:00:02]}  Kc3 {[%clk 0:00:39]} 60. Bc2 {[%clk 0:00:02]}  Bxc2 {[%clk 0:00:38]} 61. Rg1 {[%clk 0:00:03]}  b3+ {[%clk 0:00:38]} 62. Kxa3 {[%clk 0:00:03]}  Be7+ {[%clk 0:00:38]} 63. Ka4 {[%clk 0:00:03]}  b2+ {[%clk 0:00:39]} 64. Ka5 {[%clk 0:00:03]}  b1=Q {[%clk 0:00:38]} 65. Rg3+ {[%clk 0:00:02]}  Bd3 {[%clk 0:00:38]} 0-1

[Event "December 19 Late 2023"]
[Site "https://www.chess.com"]
[Date "2023.12.19"]
[Round "10"]
[White "Kniazev, Igor"]
[Black "Alimpic, Aleksa"]
[Result "0-1"]
[Board "106"]
[TimeControl "180+1"]
[WhiteFideId "4136349"]
[BlackFideId "974323"]
[WhiteElo "1853"]
[BlackElo "2290"]
[WhiteTeam "RUS"]
[BlackTeam "SRB"]
[WhiteClock "0:00:14"]
[BlackClock "0:00:10"]

1. e4 {[%clk 0:01:52]}  c5 {[%clk 0:02:58]} 2. f4 {[%clk 0:01:51]}  d5 {[%clk 0:02:58]} 3. exd5 {[%clk 0:01:51]}  Nf6 {[%clk 0:02:58]} 4. Bb5+ {[%clk 0:01:50]}  Bd7 {[%clk 0:02:57]} 5. Bxd7+ {[%clk 0:01:49]}  Qxd7 {[%clk 0:02:57]} 6. Nc3 {[%clk 0:01:48]}  Nxd5 {[%clk 0:02:55]} 7. Nxd5 {[%clk 0:01:47]}  Qxd5 {[%clk 0:02:55]} 8. Qf3 {[%clk 0:01:46]}  Qxf3 {[%clk 0:02:53]} 9. Nxf3 {[%clk 0:01:45]}  Nc6 {[%clk 0:02:53]} 10. c3 {[%clk 0:01:44]}  e6 {[%clk 0:02:49]} 11. O-O {[%clk 0:01:39]}  Be7 {[%clk 0:02:48]} 12. Ne5 {[%clk 0:01:32]}  Rc8 {[%clk 0:02:16]} 13. d3 {[%clk 0:01:29]}  f6 {[%clk 0:02:08]} 14. Nxc6 {[%clk 0:01:19]}  Rxc6 {[%clk 0:02:09]} 15. f5 {[%clk 0:01:17]}  Kf7 {[%clk 0:01:58]} 16. Be3 {[%clk 0:01:13]}  Rd8 {[%clk 0:01:55]} 17. d4 {[%clk 0:01:08]}  b6 {[%clk 0:01:14]} 18. Rad1 {[%clk 0:01:05]}  cxd4 {[%clk 0:01:12]} 19. Bxd4 {[%clk 0:00:59]}  e5 {[%clk 0:01:09]} 20. Be3 {[%clk 0:00:55]}  Rcd6 {[%clk 0:01:08]} 21. Rxd6 {[%clk 0:00:50]}  Rxd6 {[%clk 0:01:09]} 22. Kf2 {[%clk 0:00:48]}  g6 {[%clk 0:01:07]} 23. g4 {[%clk 0:00:45]}  Rd5 {[%clk 0:00:33]} 24. c4 {[%clk 0:00:44]}  Rd8 {[%clk 0:00:28]} 25. Kf3 {[%clk 0:00:41]}  Bc5 {[%clk 0:00:26]} 26. Rc1 {[%clk 0:00:32]}  Bxe3 {[%clk 0:00:19]} 27. Kxe3 {[%clk 0:00:32]}  Rd4 {[%clk 0:00:20]} 28. c5 {[%clk 0:00:28]}  bxc5 {[%clk 0:00:19]} 29. Rxc5 {[%clk 0:00:28]}  Rxg4 {[%clk 0:00:16]} 30. Rc7+ {[%clk 0:00:28]}  Kg8 {[%clk 0:00:15]} 31. Rc8+ {[%clk 0:00:25]}  Kg7 {[%clk 0:00:15]} 32. Rc7+ {[%clk 0:00:26]}  Kh6 {[%clk 0:00:15]} 33. fxg6 {[%clk 0:00:26]}  hxg6 {[%clk 0:00:15]} 34. Rxa7 {[%clk 0:00:26]}  Rg2 {[%clk 0:00:14]} 35. b4 {[%clk 0:00:26]}  Rxh2 {[%clk 0:00:13]} 36. b5 {[%clk 0:00:27]}  Rb2 {[%clk 0:00:13]} 37. a4 {[%clk 0:00:27]}  f5 {[%clk 0:00:12]} 38. Ra6 {[%clk 0:00:23]}  Rb3+ {[%clk 0:00:12]} 39. Kd2 {[%clk 0:00:21]}  f4 {[%clk 0:00:12]} 40. b6 {[%clk 0:00:20]}  e4 {[%clk 0:00:11]} 41. Kc2 {[%clk 0:00:20]}  Rb4 {[%clk 0:00:06]} 42. Kc3 {[%clk 0:00:20]}  Rb1 {[%clk 0:00:06]} 43. Kc2 {[%clk 0:00:18]}  f3 {[%clk 0:00:06]} 44. Kxb1 {[%clk 0:00:17]}  f2 {[%clk 0:00:07]} 45. b7 {[%clk 0:00:18]}  f1=Q+ {[%clk 0:00:06]} 46. Kc2 {[%clk 0:00:16]}  Qd3+ {[%clk 0:00:05]} 47. Kc1 {[%clk 0:00:16]}  Qc3+ {[%clk 0:00:03]} 48. Kb1 {[%clk 0:00:15]}  Qb3+ {[%clk 0:00:03]} 49. Kc1 {[%clk 0:00:16]}  Qxb7 {[%clk 0:00:04]} 50. Ra5 {[%clk 0:00:16]}  Qc7+ {[%clk 0:00:04]} 51. Kb2 {[%clk 0:00:15]}  Qxa5 {[%clk 0:00:04]} 52. Kb3 {[%clk 0:00:16]}  g5 {[%clk 0:00:05]} 53. Kc4 {[%clk 0:00:16]}  g4 {[%clk 0:00:06]} 54. Kd4 {[%clk 0:00:17]}  g3 {[%clk 0:00:06]} 55. Ke3 {[%clk 0:00:18]}  g2 {[%clk 0:00:07]} 56. Kf2 {[%clk 0:00:18]}  Qd2+ {[%clk 0:00:07]} 57. Kg1 {[%clk 0:00:18]}  Kg5 {[%clk 0:00:08]} 58. Kh2 {[%clk 0:00:18]}  Kf4 {[%clk 0:00:07]} 59. Kh3 {[%clk 0:00:18]}  Kf3 {[%clk 0:00:08]} 60. Kh2 {[%clk 0:00:19]}  Qa5 {[%clk 0:00:09]} 61. Kg1 {[%clk 0:00:19]}  Qxa4 {[%clk 0:00:09]} 62. Kh2 {[%clk 0:00:19]}  Qe8 {[%clk 0:00:10]} 63. Kg1 {[%clk 0:00:19]}  e3 {[%clk 0:00:10]} 64. Kh2 {[%clk 0:00:18]}  e2 {[%clk 0:00:11]} 65. Kh3 {[%clk 0:00:14]}  e1=B {[%clk 0:00:10]} 0-1

[Event "December 19 Late 2023"]
[Site "https://www.chess.com"]
[Date "2023.12.19"]
[Round "10"]
[White "Saim, Mohamed Ilias"]
[Black "Golubenko, Valentina"]
[Result "0-1"]
[Board "107"]
[TimeControl "180+1"]
[WhiteFideId "7900465"]
[BlackFideId "4501993"]
[WhiteElo "2063"]
[BlackElo "2126"]
[WhiteTeam "ALG"]
[BlackTeam "CRO"]
[WhiteClock "0:00:07"]
[BlackClock "0:00:57"]

1. d4 {[%clk 0:03:00]}  c5 {[%clk 0:02:57]} 2. d5 {[%clk 0:03:00]}  e6 {[%clk 0:02:57]} 3. e4 {[%clk 0:02:58]}  exd5 {[%clk 0:02:57]} 4. exd5 {[%clk 0:02:58]}  d6 {[%clk 0:02:57]} 5. Nc3 {[%clk 0:02:58]}  g6 {[%clk 0:02:56]} 6. Bc4 {[%clk 0:02:56]}  Bg7 {[%clk 0:02:56]} 7. Nge2 {[%clk 0:02:55]}  a6 {[%clk 0:02:56]} 8. a4 {[%clk 0:02:54]}  Nd7 {[%clk 0:02:52]} 9. O-O {[%clk 0:02:52]}  Ne5 {[%clk 0:02:51]} 10. Ba2 {[%clk 0:02:49]}  Ne7 {[%clk 0:02:51]} 11. Bg5 {[%clk 0:02:36]}  O-O {[%clk 0:02:47]} 12. Qd2 {[%clk 0:02:33]}  f6 {[%clk 0:02:42]} 13. Bh6 {[%clk 0:02:31]}  Nf5 {[%clk 0:02:35]} 14. Bxg7 {[%clk 0:02:31]}  Kxg7 {[%clk 0:02:36]} 15. Nf4 {[%clk 0:01:59]}  Nd4 {[%clk 0:02:26]} 16. Rad1 {[%clk 0:01:50]}  Nef3+ {[%clk 0:02:21]} 17. gxf3 {[%clk 0:01:48]}  Nxf3+ {[%clk 0:02:21]} 18. Kg2 {[%clk 0:01:48]}  Nxd2 {[%clk 0:02:21]} 19. Rxd2 {[%clk 0:01:49]}  b5 {[%clk 0:02:14]} 20. Ne6+ {[%clk 0:01:44]}  Bxe6 {[%clk 0:02:13]} 21. dxe6 {[%clk 0:01:45]}  f5 {[%clk 0:02:06]} 22. Rfd1 {[%clk 0:01:38]}  Qg5+ {[%clk 0:02:01]} 23. Kh1 {[%clk 0:01:36]}  Rad8 {[%clk 0:01:55]} 24. f4 {[%clk 0:01:13]}  Qh4 {[%clk 0:01:41]} 25. Nd5 {[%clk 0:01:10]}  Rfe8 {[%clk 0:01:34]} 26. Re2 {[%clk 0:00:40]}  Qg4 {[%clk 0:01:24]} 27. Rde1 {[%clk 0:00:37]}  c4 {[%clk 0:01:05]} 28. Re3 {[%clk 0:00:21]}  Rc8 {[%clk 0:01:02]} 29. b3 {[%clk 0:00:18]}  Rc5 {[%clk 0:01:01]} 30. bxc4 {[%clk 0:00:17]}  bxc4 {[%clk 0:01:01]} 31. Rd1 {[%clk 0:00:10]}  Qxd1+ {[%clk 0:00:59]} 32. Kg2 {[%clk 0:00:07]}  Rxd5 {[%clk 0:00:57]} 0-1

[Event "December 19 Late 2023"]
[Site "https://www.chess.com"]
[Date "2023.12.19"]
[Round "10"]
[White "Vargas, Mauricio"]
[Black "Igel2023"]
[Result "0-1"]
[Board "111"]
[TimeControl "180+1"]
[WhiteFideId "4404572"]
[WhiteElo "1982"]
[BlackElo "2209"]
[WhiteTeam "COL"]
[WhiteClock "0:01:19"]
[BlackClock "0:00:56"]

1. e4 {[%clk 0:02:59]}  e6 {[%clk 0:02:58]} 2. Nc3 {[%clk 0:03:00]}  d5 {[%clk 0:02:58]} 3. d3 {[%clk 0:02:59]}  Nf6 {[%clk 0:02:57]} 4. e5 {[%clk 0:02:58]}  Nfd7 {[%clk 0:02:57]} 5. f4 {[%clk 0:02:58]}  c5 {[%clk 0:02:56]} 6. Nf3 {[%clk 0:02:56]}  Nc6 {[%clk 0:02:55]} 7. g4 {[%clk 0:02:53]}  h5 {[%clk 0:02:54]} 8. g5 {[%clk 0:02:53]}  g6 {[%clk 0:02:46]} 9. Bh3 {[%clk 0:02:50]}  a6 {[%clk 0:02:42]} 10. O-O {[%clk 0:02:49]}  b5 {[%clk 0:02:41]} 11. Ne2 {[%clk 0:02:39]}  d4 {[%clk 0:02:37]} 12. Nh4 {[%clk 0:02:38]}  Nb6 {[%clk 0:02:32]} 13. Ng3 {[%clk 0:02:37]}  Nd5 {[%clk 0:02:21]} 14. Ne4 {[%clk 0:02:36]}  Be7 {[%clk 0:02:20]} 15. Bg2 {[%clk 0:02:30]}  Bb7 {[%clk 0:02:18]} 16. Bd2 {[%clk 0:02:24]}  Qc7 {[%clk 0:02:14]} 17. a3 {[%clk 0:02:23]}  O-O-O {[%clk 0:02:12]} 18. Qe1 {[%clk 0:02:19]}  c4 {[%clk 0:02:08]} 19. dxc4 {[%clk 0:02:17]}  bxc4 {[%clk 0:02:08]} 20. Rb1 {[%clk 0:02:03]}  Ne3 {[%clk 0:01:48]} 21. Bxe3 {[%clk 0:02:01]}  dxe3 {[%clk 0:01:49]} 22. Kh1 {[%clk 0:02:00]}  Nd4 {[%clk 0:01:45]} 23. Qxe3 {[%clk 0:01:56]}  Nf5 {[%clk 0:01:36]} 24. Qc3 {[%clk 0:01:44]}  Nxh4 {[%clk 0:01:33]} 25. Bh3 {[%clk 0:01:36]}  Bxe4+ {[%clk 0:01:30]} 26. Kg1 {[%clk 0:01:35]}  Bc5+ {[%clk 0:01:30]} 27. Rf2 {[%clk 0:01:35]}  Qb6 {[%clk 0:01:23]} 28. Rf1 {[%clk 0:01:34]}  Bxf2+ {[%clk 0:01:18]} 29. Rxf2 {[%clk 0:01:32]}  Rd1+ {[%clk 0:01:18]} 30. Bf1 {[%clk 0:01:31]}  Nf3+ {[%clk 0:01:12]} 31. Kg2 {[%clk 0:01:29]}  Nd2+ {[%clk 0:01:08]} 32. Kg3 {[%clk 0:01:27]}  Nxf1+ {[%clk 0:01:08]} 33. Rxf1 {[%clk 0:01:26]}  h4+ {[%clk 0:01:00]} 34. Kg4 {[%clk 0:01:20]}  Rxf1 {[%clk 0:00:57]} 35. Qxc4+ {[%clk 0:01:19]}  Qc6 {[%clk 0:00:58]} 36. Qxf1 {[%clk 0:01:19]}  Bf5# {[%clk 0:00:56]} 0-1